[Event "4NCL Div 1 2024-25"]
[Site "England"]
[Date "2025.01.25"]
[Round "3.34"]
[White "Panjwani, Raja"]
[Black "Kirk, Ezra"]
[Result "0-1"]
[Annotator "TA"]
[ECO "C06"]
[WhiteElo "2448"]
[BlackElo "2386"]
[PlyCount "106"]
[EventDate "2024.11.23"]
[EventType "team-tourn"]
[EventCountry "ENG"]
[SourceTitle "playchess.com"]
[Source "ChessBase"]
[SourceQuality "1"]
[TimeControl "40/6000+30:3000+30"]

{[%evp 15,106,23,15,10,35,41,59,0,46,47,33,32,26,-35,-36,-81,-77,-105,-106,-90,-115,-104,-97,-211,-66,-60,-65,-64,-62,-129,-127,-120,-135,-141,-105,-117,-124,-148,-139,-159,-121,-126,-128,-156,-155,-159,-133,-133,-141,-160,-148,-166,-125,-122,-107,-109,-115,-112,-131,-130,-139,-133,-134,-108,-75,-78,-59,-45,0,-108,-106,-106,-130,-140,-148,-264,1362,-270,-282,-434,-426,-1064,-1053,-1207,-1553,-1598,-1541,-4618,-2441,-4618,-4618,-4618,-4618]} 1. e4 {[%emt 0:10:08]} e6 {[%emt 0:12:29]} 2. d4 {[%emt 0:00:14]} d5 {[%emt 0:00:06]} 3. Nd2 {[%emt 0:00:13]} Be7 {[%emt 0:03:18]} 4. Ngf3 {[%emt 0:00:34]} Nf6 {[%emt 0:00:20]} 5. e5 {[%emt 0:00:10]} Nfd7 {[%emt 0:00:07]} 6. Bd3 {[%emt 0:00:24]} c5 {[%emt 0:00:07]} 7. c3 {[%emt 0:00:07]} Nc6 {[%emt 0:00:05] 7...b6 is not played anymore.} 8. O-O {[%emt 0:00:19]} g5 {[%emt 0:01:18][%cal Bg7g5,Bg5g4][%mdl 32]} 9. Nb1 {[%emt 0:01:36] C06: French Tarrasch: 3...Nf6 4 e5 Nfd7 5 Bd3 main lines.} h5 {[%emt 0:09:24]} 10. Be3 {[%emt 0:02:16]} Nf8 $146 {[%emt 0:09:12]} (10... g4 11. Ne1 Qb6 12. b3 a5 13. Nc2 a4 14. Nba3 cxd4 15. cxd4 axb3 16. axb3 Qxb3 {1-0 Feuerstack,A (2478)-Parvanyan,A (2462) GER-CupT 2122 prel4 2022 (1.1)}) 11. dxc5 {[%emt 0:11:44]} (11. Na3 $14) 11... Nd7 {[%emt 0:08:09]} (11... g4 $11 12. Ne1 Nxe5) 12. Bb5 {[%emt 0:11:34]} g4 {[%emt 0:07:11]} 13. Nd4 {[%emt 0:05:32]} Ndxe5 {[%emt 0:02:11][%cal Oc8d7]} 14. Bf4 {[%emt 0:08:59]} (14. c4 $11) 14... Bd7 $15 {[%emt 0:01:41]} 15. Re1 {[%emt 0:16:51]} Ng6 {[%emt 0:01:29]} 16. Bxc6 {[%emt 0:08:46]} bxc6 {[%emt 0:01:19]} 17. Bd6 {[%emt 0:03:51]} Bxd6 {[%emt 0:04:50]} 18. cxd6 {[%emt 0:00:06]} Qb8 {[%emt 0:00:54][%csl LRb2,LRd6] Prevents c4} 19. Nf5 {[%emt 0:06:05]} (19. c4 $17 {might work better.}) 19... Kf8 {[%emt 0:06:49]} (19... Qxb2 $19 20. Nd2 Qxc3) 20. Ne7 $1 {[%emt 0:02:32]} Nxe7 {[%emt 0:00:26]} (20... Qxd6 21. Nxg6+ fxg6 22. Qd4) 21. dxe7+ {[%emt 0:00:05]} Kxe7 {[%emt 0:00:08]} 22. Qd4 {[%emt 0:01:43]} (22. Qd2 $15) 22... Qb6 $17 {[%emt 0:06:05]} 23. Qf4 {[%emt 0:00:08]} f6 $36 {[%emt 0:13:36][%mdl 2048] Against Qg5. White is under strong pressure.} 24. Nd2 {[%emt 0:00:08]} Qb8 {[%emt 0:01:58]} 25. Qd4 {[%emt 0:00:56]} e5 {[%emt 0:02:13][%cal Oh5h4]} (25... Qxb2 26. Rab1 Qa3 (26... Qxa2 27. Rb7 $16) 27. Rb4 $15 (27. Rb7 Qd6 $17)) 26. Nb3 {[%emt 0:01:02]} Kf7 {[%emt 0:02:02]} 27. Qe3 {[%emt 0:02:00]} h4 {[%emt 0:03:54]} 28. Nc5 {[%emt 0:00:53]} Bf5 {[%emt 0:01:09]} 29. b4 {[%emt 0:00:52]} a5 {[%emt 0:02:33]} 30. a3 {[%emt 0:00:13]} h3 {[%emt 0:04:20]} 31. g3 {[%emt 0:00:38]} axb4 {[%emt 0:00:10]} 32. axb4 {[%emt 0:05:57]} Qb5 {[%emt 0:00:08]} 33. f3 {[%emt 0:00:13]} Qc4 {[%emt 0:01:27] Threatens to win with ...gxf3.} 34. Nb7 {[%emt 0:02:12]} Qd3 {[%emt 0:00:31] Really sharp! Black is more active.} 35. Qxd3 {[%emt 0:01:40]} Bxd3 {[%emt 0:00:05]} 36. fxg4 {[%emt 0:00:24]} Kg6 {[%emt 0:01:12]} 37. Nc5 {[%emt 0:01:24]} Bc4 {[%emt 0:00:42]} 38. Kf2 {[%emt 0:02:57]} Rhd8 {[%emt 0:03:28]} 39. Nb7 {[%emt 0:02:18]} Rxa1 {[%emt 0:01:52]} 40. Rxa1 {[%emt 0:00:06][%mdl 4096] Endgame KRB-KRN} Rb8 {[%emt 0:00:34]} 41. Nd6 {[%emt 0:22:56]} Rd8 {[%emt 0:28:11]} 42. Nf5 {[%emt 0:01:09]} (42. Nb7 $1 $11 Rd7 43. Nc5) 42... Bd3 $1 {[%emt 0:08:03]} 43. Ne7+ {[%emt 0:12:30]} Kg5 {[%emt 0:00:07]} 44. Nxc6 {[%emt 0:00:28]} Rc8 {[%emt 0:00:48]} (44... Rd6 45. Na5 $17) 45. Ne7 {[%emt 0:01:39] [#]} (45. Rd1 $17 {is the only way for White.}) 45... Rc6 $4 {[%emt 0:16:19][%mdl 8192] [#]} 46. c4 $4 {[%mdl 8192]} Rxc4 $19 {[%emt 0:00:00]} 47. Nxd5 {[%emt 0:00:40] [#]} (47. Ra8 $142 d4 (47... Kxg4 48. Rg8+ Kh5 49. Nxd5 $11) 48. Rg8+ Kh6 49. Rh8+ Kg7 50. Rxh3) 47... Rc2+ $1 {[%emt 0:00:00] Black is clearly winning.} (47... Kxg4 $2 48. Ne3+ (48. Nxf6+ Kf5 $15) 48... Kh5 49. Nxc4 Bxc4 50. Ra5 $18) (47... Rxg4 48. Ra8 Bh7 49. Ra7 $17) 48. Ke3 {[%emt 0:00:12]} (48. Kf3 $142 Be2+ (48... Rxh2 $2 49. Ra8 $19) (48... Re2 $2 49. Nc3 $19) 49. Ke4 Bxg4 (49... Kxg4 $2 50. Ne3+ Kg5 51. Nxc2 $18) 50. Ra8) 48... Bc4 {[%emt 0:00:00] ( -> ...Re2+)} 49. Ke4 {[%emt 0:02:14]} Bxd5+ {[%emt 0:00:00]} (49... Kxg4 $2 {is the wrong capture.} 50. Ne3+ (50. Nxf6+ Kg5 $11) 50... Kg5 51. Nxc2 $18) 50. Kxd5 {[%emt 0:00:04]} Rxh2 {[%emt 0:00:00]} 51. Rf1 {[%emt 0:16:18]} Rd2+ {[%emt 0:00:00]} 52. Ke6 {[%emt 0:00:00]} h2 {[%emt 0:00:00] ( -> ...e4)} 53. b5 {[%emt 0:00:00]} Rb2 {[%emt 0:00:00] Weighted Error Value: White=0.59/Black=0.29 (precise)   Missed win:     	White=1     	Black=1      Mistake:       	White=7     	Black=2      Inaccurate:     	White=2     	Black=2      OK:         	White=16    	Black=16     Best:        	---       	Black=3      Strong:       	White=1     	Black=2} 0-1

[Event "4NCL Div 1 2024-25"]
[Site "England"]
[Date "2025.01.25"]
[Round "3.35"]
[White "Pert, Richard G"]
[Black "Merry, Alan B"]
[Result "1/2-1/2"]
[Annotator "TA"]
[ECO "D27"]
[WhiteElo "2399"]
[BlackElo "2417"]
[PlyCount "69"]
[EventDate "2024.11.23"]
[EventType "team-tourn"]
[EventCountry "ENG"]
[SourceTitle "playchess.com"]
[Source "ChessBase"]
[SourceQuality "1"]
[TimeControl "40/6000+30:3000+30"]

{[%evp 19,69,15,16,0,9,15,13,0,0,-5,0,0,0,0,0,0,0,0,-6,-22,7,21,12,13,11,0,0,-12,42,77,69,19,70,0,0,0,11,0,0,0,0,0,0,-16,0,0,0,0,0,0,0,0]} 1. d4 {[%emt 0:10:21]} Nf6 {[%emt 0:10:03]} 2. Nf3 {[%emt 0:00:15]} d5 {[%emt 0:00:04]} 3. c4 {[%emt 0:00:25]} e6 {[%emt 0:00:03]} 4. Nc3 {[%emt 0:00:06]} dxc4 {[%emt 0:00:03]} 5. e3 {[%emt 0:00:27]} a6 {[%emt 0:01:01]} 6. a4 {[%emt 0:00:31]} b6 {[%emt 0:01:22]} 7. Bxc4 {[%emt 0:00:24]} Bb7 {[%emt 0:00:20]} 8. O-O {[%emt 0:00:20]} c5 {[%emt 0:01:34]} 9. Qe2 {[%emt 0:00:29]} Nbd7 {[%emt 0:01:15]} 10. Rd1 {[%emt 0:01:41]} Qc7 {[%emt 0:01:07]} 11. d5 {[%emt 0:00:30] D27: Queen's Gambit Accepted: Classical main line: 7 e4!? and 7 a4.} (11. Ne5 {keeps more tension.} Bd6 12. Nxd7 Qxd7 13. dxc5 bxc5 14. e4) 11... exd5 {[%emt 0:00:10]} 12. Nxd5 {[%emt 0:00:09]} Bxd5 {[%emt 0:00:04]} 13. Rxd5 $146 {[%emt 0:00:12]} (13. Bxd5 Nxd5 14. Rxd5 Be7 15. e4 Nf6 16. Rg5 O-O 17. e5 Nd5 18. Rg3 Rfe8 19. h4 {½-½ Cordova,E (2592)-Stevic,H (2570) PNWCC Online blitz JP 2nd 2020 (4)}) 13... Nxd5 {[%emt 0:09:51]} 14. Bxd5 {[%emt 0:00:05]} Rd8 {[%emt 0:16:02]} 15. e4 {[%emt 0:00:33]} Be7 {[%emt 0:05:28] Prevents Ng5} 16. g3 {[%emt 0:01:03][%cal Oc1f4]} O-O {[%emt 0:10:09][%cal Ob6b5]} 17. Bf4 {[%emt 0:00:18]} Qc8 {[%emt 0:14:25]} 18. Bc4 {[%emt 0:04:48]} Nb8 {[%emt 0:04:59]} 19. h4 {[%emt 0:04:01]} b5 {[%emt 0:05:54]} 20. axb5 {[%emt 0:04:24]} axb5 {[%emt 0:00:04]} 21. Bxb5 {[%emt 0:00:10] A strong pair of Bishops.} Nc6 {[%emt 0:00:46] Wards off Ra7} 22. h5 {[%emt 0:06:48]} h6 {[%emt 0:02:46]} 23. Ra6 {[%emt 0:10:19]} Nd4 {[%emt 0:04:01]} ({Black should try} 23... Nb4 $11 24. Rb6 Qg4) 24. Nxd4 $14 {[%emt 0:00:14]} cxd4 {[%emt 0:05:05] Black is weak on the light squares} 25. Bd3 {[%emt 0:08:46]} (25. e5 $1 $14) 25... Bg5 {[%emt 0:02:04]} (25... Rfe8 $11) 26. Bxg5 {[%emt 0:03:03]} (26. Bd6 $1 $14) 26... hxg5 $11 {[%emt 0:00:06] The position is equal.} 27. e5 {[%emt 0:01:45] [#]} Qh3 {[%emt 0:03:15]} 28. Qf3 {[%emt 0:15:50][%mdl 1024] White has compensation. Active counter play!} Rc8 $1 {[%emt 0:02:41]} 29. Ra1 {[%emt 0:01:15] aiming for Bf5. Prevents Rc1+} Qe6 {[%emt 0:01:22]} 30. Re1 {[%emt 0:09:56]} f5 {[%emt 0:05:15]} 31. Qe2 {[%emt 0:07:42]} Rc5 {[%emt 0:02:22]} 32. b3 {[%emt 0:01:43]} Rfc8 {[%emt 0:01:17]} 33. Bc4 {[%emt 0:01:20]} Rxc4 {[%emt 0:00:04]} 34. bxc4 {[%emt 0:00:03]} Rxc4 {[%emt 0:00:16]} 35. Qd2 {[%emt 0:05:32] Weighted Error Value: White=0.11 (very precise) /Black=0.10 (very precise)   Mistake:       	White=2     	Black=2      Inaccurate:     	---       	Black=1      OK:         	White=11    	Black=10     Best:        	White=1     	---        Strong:       	---       	Black=1} 1/2-1/2

[Event "4NCL Div 1 2024-25"]
[Site "England"]
[Date "2025.01.25"]
[Round "3.36"]
[White "Taylor, Martin R"]
[Black "Williams, Simon K"]
[Result "0-1"]
[Annotator "TA"]
[ECO "A92"]
[WhiteElo "2353"]
[BlackElo "2442"]
[PlyCount "58"]
[EventDate "2024.11.23"]
[EventType "team-tourn"]
[EventCountry "ENG"]
[SourceTitle "playchess.com"]
[Source "ChessBase"]
[SourceQuality "1"]
[TimeControl "40/6000+30:3000+30"]

{[%evp 9,58,37,35,35,45,29,63,71,86,79,74,41,47,37,47,21,44,22,40,43,75,75,97,94,97,10,17,-43,-31,-55,-38,-82,-64,-80,-77,-91,-106,-466,-449,-416,-363,-596,-582,-981,-939,-903,-780,-780,-621,-29998,-29999]} 1. d4 {[%emt 0:10:04]} e6 {[%emt 0:10:19]} 2. Nf3 {[%emt 0:00:09]} f5 {[%emt 0:00:11]} 3. g3 {[%emt 0:00:14]} Nf6 {[%emt 0:00:17]} 4. Bg2 {[%emt 0:00:07]} Be7 {[%emt 0:00:37]} 5. c4 {[%emt 0:00:49]} Ne4 {[%emt 0:01:34]} 6. O-O {[%emt 0:03:03] A92: Classical Dutch: Classical Stonewall (with ...Be7): Early deviations.} d5 {[%emt 0:01:38]} 7. Qc2 {[%emt 0:03:52]} Nc6 {[%emt 0:02:08]} 8. Nc3 {[%emt 0:03:26] White is slightly better.} Bf6 {[%emt 0:04:27]} 9. Rd1 {[%emt 0:04:19]} O-O {[%emt 0:05:51]} 10. cxd5 {[%emt 0:20:22]} exd5 {[%emt 0:00:09] [#]} 11. Ne5 $146 {[%emt 0:02:59]} (11. Qb3 Nxc3 12. bxc3 Na5 13. Qc2 Re8 14. Ne5 Be6 15. f4 c6 16. a4 Rc8 17. Qd3 {½-½ Stelmaszuk,M (1944)-Sobolewski,P (1939) POL-chT 2nd League 2023 (1.41)}) 11... Ne7 {[%emt 0:12:36]} 12. f3 {[%emt 0:11:51]} Nd6 {[%emt 0:00:43]} 13. e3 {[%emt 0:19:37]} Be6 {[%emt 0:05:31]} 14. b3 {[%emt 0:00:45]} g5 {[%emt 0:04:14][%cal Bg7g5,Bg5f4][%mdl 32] Space Advantage White} 15. Ba3 {[%emt 0:03:33]} f4 {[%emt 0:05:23]} 16. exf4 {[%emt 0:03:41]} gxf4 {[%emt 0:00:08]} 17. g4 {[%emt 0:03:06]} (17. Ne2 $16) 17... Nf7 $11 {[%emt 0:03:15]} 18. Nxf7 {[%emt 0:01:34]} (18. Nd3 $11) 18... Rxf7 $15 {[%emt 0:01:11]} 19. Rd2 {[%emt 0:09:04]} Ng6 {[%emt 0:02:48]} 20. Ne2 {[%emt 0:04:12]} Bh4 {[%emt 0:02:13]} 21. Rf1 {[%emt 0:01:19]} Qg5 {[%emt 0:00:30]} 22. Nc1 {[%emt 0:02:11]} h5 {[%emt 0:01:00]} 23. gxh5 {[%emt 0:00:27][%mdl 8192] This move loses the game for White.} (23. Re2 $17 {is more resistant.} Bd7 24. Nd3) 23... Qxh5 $19 {[%emt 0:00:05]} 24. Nd3 {[%emt 0:00:16]} Bf5 {[%emt 0:04:05]} 25. Qd1 $2 {[%emt 0:00:49] [#]} (25. Qb2 {was called for.}) 25... Bg3 $1 {[%emt 0:04:55][%mdl 512]} 26. hxg3 {[%emt 0:00:38]} (26. h3 Bxh3) 26... fxg3 {[%emt 0:00:06][%csl Gg3][%cal Rh5h2]} 27. Re1 {[%emt 0:00:20]} Qh2+ {[%emt 0:02:01]} 28. Kf1 {[%emt 0:00:01]} Bh3 {[%emt 0:00:11] ...Nh4 is the strong threat.} 29. Ne5 {[%emt 0:01:12]} Nf4 {[%emt 0:00:13] Weighted Error Value: White=0.88/Black=0.24 (precise)   Loses game:     	White=1     	---        Mistake:       	White=3     	---        Inaccurate:     	White=4     	Black=2      OK:         	White=5     	Black=4      Best:        	White=1     	Black=2} 0-1

[Event "4NCL Div 1 2024-25"]
[Site "England"]
[Date "2025.01.25"]
[Round "3.37"]
[White "Eggleston, David J"]
[Black "Cox, John J"]
[Result "1-0"]
[Annotator "TA"]
[ECO "B04"]
[WhiteElo "2339"]
[BlackElo "2259"]
[PlyCount "125"]
[EventDate "2024.11.23"]
[EventType "team-tourn"]
[EventCountry "ENG"]
[SourceTitle "playchess.com"]
[Source "ChessBase"]
[SourceQuality "1"]
[TimeControl "40/6000+30:3000+30"]

{[%evp 10,125,47,33,31,35,43,10,59,60,61,67,64,53,60,18,31,20,25,27,36,33,93,93,91,90,89,73,95,97,85,90,150,150,163,166,166,168,156,150,145,138,272,272,251,220,271,224,216,214,210,148,147,142,133,128,122,116,153,154,170,152,174,170,170,183,185,177,183,153,198,149,149,136,162,164,154,165,172,168,177,168,154,74,74,73,72,72,71,71,139,146,119,87,79,29,25,44,25,14,14,18,31,0,0,0,0,0,418,418,514,465,1008,852,633,452,4627,4627]} 1. e4 {[%emt 0:10:04]} Nf6 {[%emt 0:10:05]} 2. e5 {[%emt 0:02:57]} Nd5 {[%emt 0:00:05]} 3. d4 {[%emt 0:00:12]} d6 {[%emt 0:00:04]} 4. Nf3 {[%emt 0:00:08]} dxe5 {[%emt 0:00:11]} 5. Nxe5 {[%emt 0:00:17]} c6 {[%emt 0:00:04]} 6. Be2 {[%emt 0:02:54]} Bf5 {[%emt 0:05:38] B04: Alekhine's Defence: 4 Nf3.} 7. O-O {[%emt 0:01:43]} Nd7 {[%emt 1:27:53]} 8. Nf3 {[%emt 0:00:35]} e6 {[%emt 0:00:00]} (8... Nb4 $11) 9. c4 $14 {[%emt 0:01:32]} N5b6 {[%emt 0:00:00]} 10. Bf4 {[%emt 0:06:45]} Be7 {[%emt 0:00:00]} 11. Nc3 {[%emt 0:00:38]} O-O {[%emt 0:00:00]} 12. d5 $146 {[%emt 0:11:14]} (12. Qb3 Nf6 13. h3 Ne4 14. Rfd1 h6 15. a4 a5 16. Bd3 Nxc3 17. bxc3 Bxd3 18. Rxd3 {1-0 Stevic,H (2607)-Rozentalis,E (2593) FRA-chT Top 12 2016 (3.6)}) 12... cxd5 {[%emt 0:00:00]} 13. cxd5 {[%emt 0:00:10]} Bf6 {[%emt 0:00:00]} 14. Nd4 {[%emt 0:08:42]} Bxd4 {[%emt 0:00:00]} 15. Qxd4 {[%emt 0:00:22]} Nf6 {[%emt 0:00:00]} (15... Qf6 $14 16. Qxf6 Nxf6) 16. d6 $16 {[%emt 0:02:52][%csl Od6] White has a strong passed pawn. White plays in the center} Nbd5 {[%emt 0:00:00]} 17. Nxd5 {[%emt 0:00:51]} Nxd5 {[%emt 0:00:00]} 18. Bg3 {[%emt 0:01:25]} Qa5 {[%emt 0:00:00]} 19. Bf3 {[%emt 0:02:24]} Rfd8 {[%emt 0:00:00]} 20. a3 {[%emt 0:04:00]} Rd7 {[%emt 0:00:00] Black is weak on the dark squares} (20... Rac8 $142) 21. Rac1 {[%emt 0:02:03][%cal Ba1c1,Bc1c5,Bc5g5,Bg5g3][%mdl 32]} Rad8 {[%emt 0:00:00]} 22. Rc5 {[%emt 0:07:05]} Qb6 {[%emt 0:00:00]} 23. Bxd5 {[%emt 0:01:00]} exd5 {[%emt 0:00:00]} 24. Qxd5 {[%emt 0:01:24]} Be6 {[%emt 0:00:00]} 25. Qd4 {[%emt 0:00:14]} Qb3 {[%emt 0:00:00]} (25... Rc7 $16 {keeps fighting.} 26. Rfc1 (26. dxc7 Rxd4 27. c8=Q+ Bxc8 $11) 26... Rc6) 26. Rg5 $18 {[%emt 0:09:11][%csl Gg5,LRa7,LRg7][%cal Rd4g7] [#]} f5 {[%emt 0:00:00]} 27. Be5 {[%emt 0:00:31]} (27. Qxa7 $2 b6 28. Qa6 Bc4 $19 (28... Qxb2 29. Rh5 $16)) 27... g6 {[%emt 0:00:00]} 28. Rg3 {[%emt 0:09:09]} (28. Qxa7 b6 29. Qa6 Bc4 $19) 28... Qd5 {[%emt 0:00:00]} 29. Qc3 {[%emt 0:00:22]} Qc4 {[%emt 0:00:00]} 30. Qe3 {[%emt 0:02:13][%cal Of1e1]} Qe4 {[%emt 0:00:00]} 31. Qxe4 {[%emt 0:01:47]} fxe4 {[%emt 0:00:00]} 32. Rd1 {[%emt 0:00:28]} Rc8 {[%emt 0:00:00]} 33. Re3 {[%emt 0:00:55]} Bd5 {[%emt 0:00:00]} 34. f4 $36 {[%emt 0:03:52][%mdl 2048] White is really pushing.} (34. Rxd5 $2 Rc1+) 34... Bc6 {[%emt 0:00:00]} 35. g4 {[%emt 0:00:36]} Kf7 {[%emt 0:00:43]} 36. Rc1 {[%emt 0:02:02]} Re8 {[%emt 0:01:37]} 37. h4 {[%emt 0:00:11]} h6 {[%emt 0:03:47]} 38. Kf2 {[%emt 0:03:35]} Ke6 {[%emt 0:01:22]} 39. Rec3 {[%emt 0:03:21]} Rf7 {[%emt 0:01:53]} 40. Ke3 {[%emt 0:03:41]} (40. Rc5 $18) 40... g5 $16 {[%emt 0:02:35]} 41. Rc5 {[%emt 0:52:00]} gxf4+ {[%emt 0:54:17]} 42. Bxf4 {[%emt 0:00:05]} Ref8 {[%emt 0:00:35]} 43. Rf1 {[%emt 0:03:09]} (43. Bxh6 Rf3+ 44. Ke2 Rf2+ 45. Ke1 R8f3 $11) 43... Rg8 {[%emt 0:00:00]} 44. Re5+ {[%emt 0:00:00]} Kd7 {[%emt 0:00:00]} 45. b4 {[%emt 0:00:00] [#]} a6 {[%emt 0:00:00]} 46. Rg1 {[%emt 0:00:00]} (46. Rf5 $142 Rxf5 47. gxf5) 46... Rgf8 {[%emt 0:00:00]} 47. Rf5 {[%emt 0:00:00] White has more active pieces.} (47. Bxh6 Rf3+ 48. Kd2 (48. Kd4 R8f6 $17) 48... Kxd6 49. Bxf8+ Kxe5 50. Bg7+ Kd5 $11) 47... Rxf5 {[%emt 0:00:00]} 48. gxf5 {[%emt 0:00:00]} Rxf5 {[%emt 0:00:00][%mdl 4096] Endgame KRB-KRB} 49. Rg7+ {[%emt 0:00:00]} (49. Bxh6 Rf3+ 50. Kd4 Kxd6 51. Rg6+ Kd7 $14) 49... Ke8 {[%emt 0:00:00]} ({Better is} 49... Ke6) 50. Re7+ {[%emt 0:00:00]} (50. Bxh6 Rf3+ 51. Ke2 (51. Kd4 Rf6 $16) 51... Bb5+ 52. Ke1 Rf1+ 53. Kd2 Rf6) 50... Kd8 {[%emt 0:00:00]} 51. Rh7 {[%emt 0:00:00]} Rd5 {[%emt 0:00:00]} 52. Rxh6 {[%emt 0:00:00]} (52. Bxh6 Rxd6 53. Bg5+ Kc8 $14) (52. Kxe4 $16 Rh5+ 53. Ke3) 52... Rd3+ $11 {[%emt 0:00:00]} 53. Ke2 $1 {[%emt 0:00:00]} Rxa3 {[%emt 0:00:00]} 54. Rh8+ {[%emt 0:00:00]} Kd7 {[%emt 0:00:00]} 55. Rh7+ {[%emt 0:00:00]} Ke6 {[%emt 0:00:00]} 56. Re7+ {[%emt 0:00:00]} Kf5 {[%emt 0:00:00]} 57. Be3 {[%emt 0:02:20]} Bb5+ {[%emt 0:00:00]} 58. Kf2 {[%emt 0:00:22][%cal Oe7g7]} Rd3 $2 {[%emt 0:00:00][%mdl 8192]} (58... Ra2+ $11 {and Black stays safe.} 59. Kg1 (59. Kg3 Ra3 $11) 59... Ra1+ 60. Kg2 Ra2+ 61. Bf2 Kf4) 59. h5 $18 {[%emt 0:00:59][%cal Bh4h5,Bh5h6][%mdl 32]} ({Less strong is} 59. Rxb7 Kg4 $14) 59... Rd1 {[%emt 0:01:55]} 60. h6 {[%emt 0:00:48] White is clearly winning.} Kg6 {[%emt 0:00:20]} (60... Rxd6 $142 61. h7 (61. Rxb7 Rd8 $18) 61... Rd8) 61. Rg7+ {[%emt 0:04:08]} Kf6 {[%emt 0:00:17]} 62. Rxb7 {[%emt 0:00:32] and h7 would now be decisive} Rh1 {[%emt 0:00:39]} (62... Ke6 $142 63. h7 Rh1) 63. d7 {[%emt 0:00:53] Weighted Error Value: White=0.20 (precise) /Black=0.41  Loses game:     	---       	Black=1      Mistake:       	White=3     	Black=6      Inaccurate:     	White=3     	Black=1      OK:         	White=28    	Black=18     Best:        	White=3     	Black=8      Strong:       	White=1     	---} 1-0

[Event "4NCL Div 1 2024-25"]
[Site "England"]
[Date "2025.01.25"]
[Round "3.38"]
[White "Zhao, George"]
[Black "Pert, Max"]
[Result "1/2-1/2"]
[Annotator "TA"]
[ECO "E11"]
[WhiteElo "2233"]
[BlackElo "2076"]
[PlyCount "74"]
[EventDate "2024.11.23"]
[EventType "team-tourn"]
[EventCountry "ENG"]
[SourceTitle "playchess.com"]
[Source "ChessBase"]
[SourceQuality "1"]
[TimeControl "40/6000+30:3000+30"]

{[%evp 12,74,12,19,41,6,8,0,5,0,0,0,0,-20,41,31,37,37,41,40,64,67,77,18,9,6,9,1,56,68,80,12,12,12,24,21,17,0,0,0,0,0,61,61,68,61,61,66,81,60,60,60,60,60,60,0,60,60,60,0,60,0,60,0,60]} 1. d4 {[%emt 0:10:06]} d5 {[%emt 0:10:18]} 2. c4 {[%emt 0:00:18]} e6 {[%emt 0:00:34]} 3. Nf3 {[%emt 0:04:12]} Nf6 {[%emt 0:01:03]} 4. g3 {[%emt 0:00:27]} Bb4+ {[%emt 0:01:20]} 5. Bd2 {[%emt 0:00:36]} a5 {[%emt 0:00:37]} 6. Bg2 {[%emt 0:04:40]} O-O {[%emt 0:01:13]} 7. Qc2 {[%emt 0:03:10]} c5 {[%emt 0:01:10]} 8. O-O {[%emt 0:06:51]} cxd4 {[%emt 0:06:14]} 9. Nxd4 {[%emt 0:08:27]} e5 {[%emt 0:06:28]} 10. Nf3 {[%emt 0:02:09]} e4 {[%emt 0:04:06]} 11. Nd4 {[%emt 0:00:34]} Nc6 {[%emt 0:03:08]} 12. e3 {[%emt 0:06:05]} dxc4 {[%emt 0:12:02]} (12... Bg4 $11) 13. Nxc6 $14 {[%emt 0:14:03] White sacrificed a pawn} bxc6 {[%emt 0:00:09]} 14. a3 {[%emt 0:13:26]} Bxd2 {[%emt 0:07:06]} 15. Nxd2 {[%emt 0:00:24][%csl Oc4] White attacks a weakness} Qd3 {[%emt 0:00:52]} 16. Rfc1 {[%emt 0:03:09]} Be6 {[%emt 0:25:59]} 17. Nxe4 {[%emt 0:05:27]} (17. Bxe4 Nxe4 18. Nxe4 Qd5) (17. Nxc4 $16 Qxc2 18. Rxc2) 17... Nxe4 $11 {[%emt 0:03:06]} 18. Bxe4 {[%emt 0:00:19]} Qxc2 {[%emt 0:00:46]} 19. Rxc2 {[%emt 0:00:12]} Rab8 {[%emt 0:04:28]} (19... Ra6 $11) 20. Bxc6 $14 {[%emt 0:08:11]} Rb6 {[%emt 0:01:22]} 21. Bg2 {[%emt 0:00:26]} (21. Bf3 $16) 21... Rfb8 $11 {[%emt 0:00:46]} 22. Rd1 {[%emt 0:01:57]} Kf8 {[%emt 0:02:33]} 23. Bd5 {[%emt 0:07:55]} Rxb2 {[%emt 0:06:38]} 24. Rxc4 {[%emt 0:02:21]} Rb1 {[%emt 0:03:09]} 25. Rcd4 {[%emt 0:00:43]} Bxd5 {[%emt 0:00:56]} 26. Rxd5 {[%emt 0:00:06][%cal Od1b1] [#]} Rxd1+ {[%emt 0:00:58]} (26... a4 $1 $11) 27. Rxd1 {[%emt 0:00:04][%mdl 4096] Endgame KR-KR. White is a pawn up.} Rb3 $1 {[%emt 0:00:18]} 28. a4 {[%emt 0:00:29] Rd5 is the strong threat.} Ra3 {[%emt 0:00:08]} 29. Rd4 {[%emt 0:00:15]} Ke7 {[%emt 0:00:49]} 30. h4 {[%emt 0:00:16]} h5 {[%emt 0:00:43]} 31. Kg2 {[%emt 0:00:30]} Ke6 {[%emt 0:00:27] Inhibits Rd5.} 32. Kf3 {[%emt 0:00:34]} Ra2 {[%emt 0:00:52]} 33. Kg2 {[%emt 0:00:51]} (33. Re4+ $14 Kf6 34. Rf4+ Ke6 35. g4) 33... g6 {[%emt 0:00:41]} ({Black should play} 33... Ra3 $1 $11) 34. Kf3 $14 {[%emt 0:00:03]} Ke5 {[%emt 0:00:24]} 35. Kg2 {[%emt 0:00:58]} Ke6 {[%emt 0:00:06]} 36. Kf3 {[%emt 0:00:02]} Ke5 $1 {[%emt 0:00:04]} 37. Kg2 {[%emt 0:00:02]} Ke6 {[%emt 0:00:06] Weighted Error Value: White=0.20 (precise) /Black=0.15 (very precise)   Mistake:       	White=3     	Black=4      Inaccurate:     	White=1     	---        OK:         	White=12    	Black=12     Best:        	White=1     	Black=3      Strong:       	---       	Black=2} 1/2-1/2